Cogmind - Beta 15 @@@ ROGUE MODE // 2025.09.08 @ 01:48:49 Player: dirtydan Result: Destroyed by S-27 Virus with Autogun Performance ------------- Evolutions (3) 1500 Regions Visited (6) 1200 Robots Destroyed (38) 190 Value Destroyed (1414) 1414 Prototype IDs (0) 0 Alien Tech Used (0) 0 Bonus (0) 0 TOTAL SCORE: 4304 Bonus ------- None Cogmind --------- Core Integrity 0/700 Matter 68/300 Energy 100/100 System Corruption 1% Temperature Cool (0) Movement Core (50) Location -7/Factory Parts ------- > --- POWER (4) -------- (None) > --- PROPULSION (3) --- (None) > --- UTILITY (3) ------ (None) > --- WEAPON (3) ------- (None) > --- INVENTORY (5) ---- Nuclear Core Hardened Medium Armor Plating High-powered Shotgun Remote Datajack Great Maul Peak State ------------ > --- POWER ------------ Deuterium Engine Nuclear Core Light Nuclear Core Micro Nuclear Core > --- PROPULSION ------- Improved Titanium Leg Improved Titanium Leg Improved Titanium Leg > --- UTILITY ---------- Improved Heat Sink Targeting Computer Weapon Cycler > --- WEAPON ----------- Gauss Cannon Gauss Cannon Remote Datajack > --- INVENTORY -------- Nuclear Core Hardened Medium Armor Plating Minigun High-powered Shotgun Great Maul [Rating: 46] Favorites ----------- Power Nuclear Core Engine Deuterium Engine Power Core Nuclear Core Propulsion Improved Titanium Leg Treads Improved Treads Leg Improved Titanium Leg Wheel Wheel Hover Unit Hover Unit Flight Unit Flight Unit Utility Targeting Computer Device Improved Heat Sink Storage Medium Matter Pod Processor Targeting Computer Protection Hardened Medium Armor Plating Weapon Gauss Cannon Energy Gun Medium Laser Ballistic Gun Minigun Ballistic Cannon Gauss Cannon Launcher Mini Grenade Launcher Special Weapon Remote Datajack Impact Weapon Great Maul Build | -11 -10 -10 -10 -9 -8 -7 ------- Run | Yrd Mat Min Exi Min Mat Fac Slots Evolved 6 | . . . . . 4 2 Power 3 | . . . . . 2 1 Propulsion 1 | . . . . . 1 . Utility 1 | . . . . . . 1 Weapon 1 | . . . . . 1 . Parts Attached 55 | 6 7 . . 6 26 10 Power 9 | 1 1 . . 1 3 3 Engine 5 | 1 1 . . 1 1 1 Core 4 | . . . . . 2 2 Reactor . | . . . . . . . Propulsion 18 | 2 2 . . 2 11 1 Treads 3 | . . . . . 3 . Leg 10 | 2 . . . . 7 1 Wheel 2 | . . . . 2 . . Hover 2 | . 2 . . . . . Flight 1 | . . . . . 1 . Utility 12 | . 4 . . . 5 3 Device 4 | . 1 . . . 1 2 Storage 3 | . 2 . . . 1 . Processor 4 | . 1 . . . 2 1 Hackware . | . . . . . . . Protection 1 | . . . . . 1 . Artifact . | . . . . . . . Weapon 16 | 3 . . . 3 7 3 Energy Gun 2 | 1 . . . . 1 . Energy Cannon . | . . . . . . . Ballistic Gun 9 | 2 . . . 2 5 . Ballistic Cannon 2 | . . . . . . 2 Launcher 1 | . . . . 1 . . Special Weapon 1 | . . . . . . 1 Impact Weapon 1 | . . . . . 1 . Slashing Weapon . | . . . . . . . Piercing Weapon . | . . . . . . . Special Melee Weapon . | . . . . . . . Unidentified Prototypes . | . . . . . . . Corrupted Parts 1 | . . . . . 1 . System Corruption 9 | . . . . . 9 . Parts Lost 24 | . . . . . 11 13 Power 6 | . . . . . 2 4 Propulsion 8 | . . . . . 5 3 Utility 4 | . . . . . 1 3 Weapon 6 | . . . . . 3 3 Highest Loss Streak 13 | . . . . . 5 13 To Critical Strikes 1 | . . . . . 1 . Average Backups 4 | 2 3 5 5 4 3 4 Power . | . . . . . . . Propulsion . | 1 2 3 3 2 1 . Utility 1 | . . 2 2 2 1 1 Weapon 1 | . . . . . . 1 Tool/Special . | . . . . . . . Unused Backups 4 | . . . . . . 4 Power . | . . . . . . . Propulsion 2 | . . . . . . 2 Utility 2 | . . . . . . 2 Weapon . | . . . . . . . Tool/Special . | . . . . . . . Average Slot Usage (%) 86 | . 88 100 100 100 78 91 Engine 5 | . 14 14 14 14 2 5 Core 11 | . . . . . 7 19 Treads 2 | . . . . . 4 . Leg 17 | . 23 . . . 15 22 Wheel 1 | . . . . 12 2 . Hover 1 | . 3 28 28 15 . . Device 5 | . 7 . . . . 11 Storage 4 | . 2 28 28 28 5 . Processor 8 | . 8 . . . 7 10 Protection 2 | . . . . . 4 . Energy Gun 2 | . 14 14 14 10 1 . Ballistic Gun 13 | . 14 14 14 17 15 9 Ballistic Cannon 4 | . . . . . . 9 Impact Weapon 3 | . . . . . 6 1 Peak Build Rating 46 | 5 7 7 7 8 34 46 Average Rating 25 | 4 6 7 7 7 20 40 On Entrance 9 | . 5 7 7 7 8 34 Naked Turns 1 | . . . . . . 1 Heaviest Build 47 | 6 13 13 13 13 31 47 Greatest Support 69 | 20 20 12 12 20 69 60 Greatest Overweight (x) 10 | . 1 1 1 1 10 . Average Overweight (x) . | . . 1 1 . . . Largest Inventory Capacity 8 | 5 8 8 8 8 8 5 Average Capacity 5 | 5 5 8 8 8 5 5 Most Carried 6 | 4 6 5 5 6 5 5 Average Carried 4 | 2 3 5 5 4 3 4 Final Capacity 8 | 5 8 8 8 8 5 5 Final Carried 5 | 3 5 5 5 5 5 5 Class Distribution -------------------- 35% | Gunner 30% | Scavenger-Mutant 29% | Mutant 4% | Scavenger-Gunner Dominant Class ---------------- Mutant | -10/Materials Scavenger-Mutant | -10/Mines Scavenger-Mutant | -10/Exiles Scavenger-Mutant | -9/Mines Scavenger-Mutant | -8/Materials Gunner | -7/Factory Resources | -11 -10 -10 -10 -9 -8 -7 ----------- Run | Yrd Mat Min Exi Min Mat Fac Matter Collected 1255 | 295 58 . . 106 459 337 Remotely . | . . . . . . . Salvage Created 1421 | 77 114 . . 52 826 352 Parts 68 | 2 8 . . 8 29 21 Haulers Intercepted . | . . . . . . . Recyclers Shooed . | . . . . . . . Parts Field Recycled . | . . . . . . . Retrieved Matter . | . . . . . . . Parts Self-Destructed . | . . . . . . . Prevented . | . . . . . . . Kills | -11 -10 -10 -10 -9 -8 -7 ------- Run | Yrd Mat Min Exi Min Mat Fac Combat Hostiles Destroyed 31 | 1 . . . 4 16 10 Melee 2 | . . . . . 2 . Guns 12 | 1 . . . 4 6 1 Cannons 8 | . . . . . . 8 AOE 3 | . . . . . 3 . Classes Destroyed 13 | 2 2 . . 1 7 1 Worker 1 | . . . . . 1 . Builder 1 | . . . . . 1 . Tunneler 1 | 1 . . . . . . Recycler 2 | . 1 . . . 1 . Watcher 2 | . 1 . . . 1 . Swarmer 7 | . . . . 4 . 3 Grunt 12 | 1 . . . . 7 4 Brawler 2 | . . . . . 2 . Sentry 3 | . . . . . 2 1 Specialist 2 | . . . . . 2 . Hunter 3 | . . . . . 2 1 Programmer 1 | . . . . . . 1 Heavy 1 | . . . . . 1 . Best Kill Streak 4 | 1 2 . . 4 4 3 Combat Bots Only 4 | 1 . . . 4 4 3 Max Kills in Single Turn 2 | 1 1 . . 2 1 1 Gunslinging 1 | . . . . 1 . . Exploded 1 | . . . . . 1 . Melee 1 | . . . . . 1 . Uniques/NPCs Destroyed . | . . . . . . . Combat | -11 -10 -10 -10 -9 -8 -7 -------- Run | Yrd Mat Min Exi Min Mat Fac Hostile Shots Fired 461 | 20 . . . 19 191 231 Missed 143 | 7 . . . 4 57 75 Hits 318 | 13 . . . 15 134 156 Projectile 318 | 13 . . . 15 134 156 Critical Strikes 4 | . . . . . 4 . Damage Taken 4312 | 139 . . . 107 1862 2204 Core 1301 | 32 . . . 14 549 706 Absorbed by Shields 94 | . . . . . . 94 Core Remaining (%) 56 | 87 . . . 81 . . Volleys Fired 96 | 14 8 . . 6 35 33 Largest 3 | 2 2 . . 2 3 3 Hottest 105 | 70 70 . . 70 88 105 Shots Fired 224 | 28 16 . . 12 75 93 Gun 170 | 28 16 . . 12 68 46 Cannon 47 | . . . . . . 47 Launcher 7 | . . . . . 7 . Special . | . . . . . . . Kinetic 193 | 21 8 . . 6 65 93 Thermal 24 | 7 8 . . 6 3 . Explosive 7 | . . . . . 7 . Electromagnetic . | . . . . . . . Robot Hit Streak 8 | 5 5 . . 4 8 4 Robot Miss Streak 7 | 3 4 . . 3 4 7 Penetration Max 1 | . . . . . 1 . Secondary Targets 1 | . . . . 1 . . Max Gunslinging Chain 1 | . . . . 1 . . Shots Hit Robots 143 | 15 9 . . 5 67 47 Core Hits 55 | 3 4 . . 4 28 16 Critical Kills 1 | . . . . . 1 . Critical Parts Destroyed 6 | . . . . . 5 1 Critical Strikes 11 | . . . . 1 7 3 Burn 1 | . . . . 1 . . Blast 2 | . . . . . . 2 Smash 8 | . . . . . 7 1 Melee Attacks 26 | . . . . . 25 1 Impact 26 | . . . . . 25 1 Slashing . | . . . . . . . Piercing . | . . . . . . . Sneak Attacks 4 | . . . . . 4 . Combat Hostiles . | . . . . . . . Follow-up Attacks . | . . . . . . . Damage Inflicted 3257 | 165 90 . . 40 1985 977 Guns 1255 | 165 90 . . 40 574 386 Cannons 547 | . . . . . . 547 Explosions 397 | . . . . . 397 . Melee 1052 | . . . . . 1014 38 Ramming 6 | . . . . . . 6 Kinetic 1673 | 115 52 . . 16 557 933 Thermal 129 | 50 38 . . 24 17 . Explosive 397 | . . . . . 397 . Electromagnetic . | . . . . . . . Impact 1052 | . . . . . 1014 38 Slashing . | . . . . . . . Piercing . | . . . . . . . Highest Corruption 9 | . . . . . 9 1 Average Corruption 6 | . . . . . 9 1 Corruption Purged . | . . . . . . . Corruption Blocked . | . . . . . . . Effects 19 | . . . . . 18 1 Message Errors 2 | . . . . . 2 . Matter Fused 6 | . . . . . 5 1 Heat Flow Errors 1 | . . . . . 1 . Energy Discharges 2 | . . . . . 2 . Data Loss (minor) 4 | . . . . . 4 . Data Loss (major) 1 | . . . . . 1 . Alerts 2 | . . . . . 2 . Weapon Failures 1 | . . . . . 1 . Overload Shots . | . . . . . . . Overflow Damage 480 | . . . . . 406 74 Projectiles 36 | . . . . . . 36 Explosions 3 | . . . . . 3 . Melee 441 | . . . . . 403 38 Knockbacks 8 | . . . . . 4 4 Impact 4 | . . . . . 4 . Kinetic 4 | . . . . . . 4 Secondary . | . . . . . . . Self-Inflicted Damage 22 | . . . . . 22 . Shots 1 | . . . . . 1 . Rammed . | . . . . . . . Targets Rammed 2 | . . . . . . 2 Kicked 2 | . . . . . . 2 Crushed . | . . . . . . . Highest Temperature 337 | 134 60 . . 116 337 300 Average Temperature 100 | 54 22 . . 69 124 109 Received Heat Transfer 537 | 78 . . . . 405 54 Effects 3 | . . . . . 1 2 Energy Bleed 3 | . . . . . 1 2 Siege Activations . | . . . . . . . Martial Activations . | . . . . . . . Shielding Activations . | . . . . . . . Robots Disrupted . | . . . . . . . Combat Hostiles . | . . . . . . . Robots Corrupted 6 | . . . . . 5 1 Combat Hostiles 6 | . . . . . 5 1 Parts Fried 9 | . . . . . 8 1 Impact Corruptions 16 | . . . . . 15 1 Robots Melted . | . . . . . . . Combat Hostiles . | . . . . . . . Parts Melted . | . . . . . . . Heat Transferred 444 | 148 111 . . 148 37 . Parts Sabotaged . | . . . . . . . Parts Stolen . | . . . . . . . Parts Stripped . | . . . . . . . Power Chain Reactions . | . . . . . . . Alert | -11 -10 -10 -10 -9 -8 -7 ------- Run | Yrd Mat Min Exi Min Mat Fac Maximum Alert Level . | . . . . . . . Low Security (%) 100 | 100 100 100 . 100 100 100 Level 1 . | . . . . . . . Level 2 . | . . . . . . . Level 3 . | . . . . . . . Level 4 . | . . . . . . . Level 5 . | . . . . . . . High Security . | . . . . . . . Max Security . | . . . . . . . Peak Influence 180 | 20 7 . . 90 98 180 Initial 28 | . 6 . . . 23 28 Average 36 | 3 2 . . 64 47 34 Influence Increases 1036 | 25 12 . . 90 513 396 Destroy 0b10 Robot/C 620 | 20 . . . 80 320 200 Destroy 0b10 Robot/NC 35 | 5 10 . . . 20 . Destroy Leader 154 | . 2 . . 10 92 50 Successful Hack 8 | . . . . . 8 . Disable Machine 90 | . . . . . 15 75 Destroy Structure 54 | . . . . . 43 11 Lose Combat Pursuer 75 | . . . . . 15 60 Influence Decreases 1036 | 15 22 . . 30 509 460 Entered New Map 77 | . 4 . . . 37 36 Time Decay 667 | 15 18 . . 30 370 234 Lost Part 142 | . . . . . 102 40 Purge Threat 150 | . . . . . . 150 Squads Dispatched 6 | . . . . . 4 2 Investigation . | . . . . . . . Extermination 1 | . . . . . . 1 Reinforcement 5 | . . . . . 4 1 Assault . | . . . . . . . Garrison . | . . . . . . . Intercept . | . . . . . . . Searches Triggered . | . . . . . . . Construction Impeded 1 | . . . . . 1 . Haulers Reinforced . | . . . . . . . Active Scanning Responses . | . . . . . . . Cargo Convoy Interrupts . | . . . . . . . Stealth | -11 -10 -10 -10 -9 -8 -7 --------- Run | Yrd Mat Min Exi Min Mat Fac Distress Signals 1 | . . . . . 1 . Communications Jammed . | . . . . . . . Distress Signals . | . . . . . . . Times Spotted 55 | 1 2 . . 4 24 24 Peak Tracking Total 7 | 1 2 . . 4 4 7 Tactical Retreats 3 | . . . . . 1 2 Traps | -11 -10 -10 -10 -9 -8 -7 ------- Run | Yrd Mat Min Exi Min Mat Fac Traps Triggered . | . . . . . . . Indirectly . | . . . . . . . Trap Hack Attempts . | . . . . . . . Triggered . | . . . . . . . Disarmed . | . . . . . . . Reprogrammed . | . . . . . . . Reused . | . . . . . . . Traps Extracted . | . . . . . . . Installed . | . . . . . . . Triggered . | . . . . . . . Machines | -11 -10 -10 -10 -9 -8 -7 ---------- Run | Yrd Mat Min Exi Min Mat Fac Machines Disabled 6 | . . . . . 1 5 Max in Single Turn 1 | . . . . . 1 1 Machines Repaired . | . . . . . . . Machines Dismantled . | . . . . . . . Machines Sabotaged . | . . . . . . . Overloaded Fab Kills . | . . . . . . . Hacking | -11 -10 -10 -10 -9 -8 -7 --------- Run | Yrd Mat Min Exi Min Mat Fac Machines Accessed 5 | . . . . . 3 2 Terminals 4 | . . . . . 2 2 Fabricators . | . . . . . . . Repair Stations . | . . . . . . . Recycling Units . | . . . . . . . Scanalyzers 1 | . . . . . 1 . Garrison Access . | . . . . . . . Total Hacks 10 | . . . . . 7 3 Successful 9 | . . . . . 7 2 Failed 1 | . . . . . . 1 Catastrophic 1 | . . . . . . 1 Database Lockouts . | . . . . . . . Manual . | . . . . . . . Terminals 8 | . . . . . 5 3 Fabricators . | . . . . . . . Repair Stations . | . . . . . . . Recycling Units . | . . . . . . . Scanalyzers 2 | . . . . . 2 . Garrison Access . | . . . . . . . Terminal Hacks 7 | . . . . . 5 2 Record 5 | . . . . . 5 . Alert Level 1 | . . . . . . 1 Unreport Threat 1 | . . . . . . 1 Fabricator Hacks . | . . . . . . . Repair Station Hacks . | . . . . . . . Recycling Unit Hacks . | . . . . . . . Scanalyzer 2 | . . . . . 2 . Insert Component 1 | . . . . . 1 . Analyze 1 | . . . . . 1 . Garrison Access Hacks . | . . . . . . . Unauthorized Hacks . | . . . . . . . Terminals . | . . . . . . . Fabricators . | . . . . . . . Repair Stations . | . . . . . . . Recycling Units . | . . . . . . . Scanalyzers . | . . . . . . . Garrison Access . | . . . . . . . Data Cores Recovered . | . . . . . . . Used . | . . . . . . . Hacking Detections 2 | . . . . . 1 1 Full Trace Events . | . . . . . . . Feedback Events . | . . . . . . . Feedback Blocked . | . . . . . . . Robot Schematics Acquired . | . . . . . . . Robots Built . | . . . . . . . Authchips . | . . . . . . . Time . | . . . . . . . Total Robot Build Rating . | . . . . . . . Part Schematics Acquired 1 | . . . . . 1 . Parts Built . | . . . . . . . Authchips . | . . . . . . . Time . | . . . . . . . Total Part Build Rating . | . . . . . . . Parts Repaired . | . . . . . . . Time . | . . . . . . . Parts Recycled . | . . . . . . . Recycled Matter . | . . . . . . . Retrieved Matter . | . . . . . . . Retrieved Components . | . . . . . . . Parts Scanalyzed 1 | . . . . . 1 . Part Schematics Acquired 1 | . . . . . 1 . Parts Damaged . | . . . . . . . Bothacking | -11 -10 -10 -10 -9 -8 -7 ------------ Run | Yrd Mat Min Exi Min Mat Fac Used RIF Installer . | . . . . . . . Robots Hacked . | . . . . . . . Non-combat . | . . . . . . . Combat . | . . . . . . . Robot Hacks Applied . | . . . . . . . Relay Couplers Released . | . . . . . . . Fabnet Peak Effective % . | . . . . . . . Robots Rewired . | . . . . . . . Allies Hacked . | . . . . . . . Hacks Repelled . | . . . . . . . Allies | -11 -10 -10 -10 -9 -8 -7 -------- Run | Yrd Mat Min Exi Min Mat Fac Total Allies . | . . . . . . . Largest Group . | . . . . . . . Highest-Rated Group . | . . . . . . . Highest-Rated Ally . | . . . . . . . Total Orders . | . . . . . . . Ally Attacks . | . . . . . . . Total Damage . | . . . . . . . Kills . | . . . . . . . Allies Corrupted . | . . . . . . . Allies Melted . | . . . . . . . Intel | -11 -10 -10 -10 -9 -8 -7 ------- Run | Yrd Mat Min Exi Min Mat Fac Active Infowar (turns) 206 | . 71 . . . 135 . Optics 135 | . . . . . 135 . Sensors 71 | . 71 . . . . . Robot Analysis Total . | . . . . . . . Derelict Logs Recovered 2 | . . . . 2 . . Drone Launches . | . . . . . . . Drone Recoveries . | . . . . . . . Exploration | -11 -10 -10 -10 -9 -8 -7 ------------- Run | Yrd Mat Min Exi Min Mat Fac Turns Passed 2117 | 148 125 20 34 68 900 822 Spaces Moved 1256 | 93 75 18 30 42 523 475 Core 49 | 24 . . . . 24 1 Treads 33 | . . . . . 33 . Legs 1018 | 69 61 . . . 414 474 Wheels 69 | . . . . 36 33 . Hover 68 | . 14 18 30 6 . . Flight 19 | . . . . . 19 . Fastest Speed 50 | 50 56 116 116 80 80 50 Average Speed 120 | 101 112 116 116 85 120 129 Slowest Speed 550 | 120 120 116 116 116 550 130 Overloaded Moves . | . . . . . . . Propulsion Burnouts . | . . . . . . . Robots Hopped . | . . . . . . . Potential Cave-ins . | . . . . . . . Cave-ins Triggered . | . . . . . . . Exploration Rate (%) 12 | 6 17 9 8 7 27 12 Regions Visited 6 Branch Regions 3 Pre-discovered Areas 1 | . . . . 1 . . Known Exits Taken 2 | . 1 . . . 1 . Unknown Exits Taken 4 | 1 . 1 1 1 . . Scrap Searched 1 | . . . . 1 . . Spaces Dug . | . . . . . . . Terrain Destroyed 50 | . . . . . 41 9 Melee . | . . . . . . . Projectile 9 | . . . . . . 9 AOE 41 | . . . . . 41 . Terrain Rammed . | . . . . . . . Walls Destroyed . | . . . . . . . Machines Disabled . | . . . . . . . Actions | -11 -10 -10 -10 -9 -8 -7 --------- Run | Yrd Mat Min Exi Min Mat Fac Total 1629 | 120 102 17 29 63 681 617 Wait 104 | . . . . . 27 77 Move 1250 | 92 74 17 29 41 522 475 Hop . | . . . . . . . Pick Up 54 | 8 8 . . 5 25 8 Fast Attach 7 | . . . . . 3 4 Attach 30 | 5 4 . . 1 18 2 Detach 2 | . 1 . . . 1 . Swap 26 | 1 3 . . 5 11 6 Drop 32 | . 4 . . 5 14 9 Fire 96 | 14 8 . . 6 35 33 Melee 26 | . . . . . 25 1 Ram . | . . . . . . . Kick 2 | . . . . . . 2 Crush . | . . . . . . . Escape Stasis . | . . . . . . . Rewire . | . . . . . . . Trap . | . . . . . . . Miscellaneous . | . . . . . . . Route ------- -11/Scrapyard -10/Materials -10/Mines -10/Exiles -9/Mines -8/Materials (discovered 2 exits: *Fac x2) -7/Factory History --------- Turn | Location | Event 2 | -11/Scrapyard | Met Revision 17 77 | -11/Scrapyard | Discovered new exit (range 8) 149 | -11/Scrapyard | Entered Materials 249 | -10/Materials | Discovered new exit (range 7) 266 | -10/Materials | Identified exit to Mines 274 | -10/Materials | Entered Mines 290 | -10/Mines | Deemed a non-threat by the Exiles lab entrance 290 | -10/Mines | Discovered new exit (range 5) 294 | -10/Mines | Entered Exiles 312 | -10/Exiles | Discovered new exit (range 15) 328 | -10/Exiles | Entered Mines 337 | -9/Mines | Met a Derelict bent on vengeance 379 | -9/Mines | Discovered new exit (range 6) 387 | -9/Mines | Learned location of Zion (-7) 396 | -9/Mines | Entered Materials 396 | -8/Materials | Evolved 4 slots: Power x2, Propulsion x1, Weapon x1 397 | -8/Materials | Identified exit to Factory 548 | -8/Materials | Lost 3 parts (1p2n) 740 | -8/Materials | Core integrity fell below 50% 751 | -8/Materials | Core integrity fell below 20% 769 | -8/Materials | Lost 5 parts (3n2w) 1081 | -8/Materials | Build established: Scavenger-Mutant 1244 | -8/Materials | Discovered exit to Factory (range 10) 1296 | -8/Materials | Entered Factory 1296 | -7/Factory | Evolved 2 slots: Power x1, Utility x1 1719 | -7/Factory | Build established: Gunner 2101 | -7/Factory | Core integrity fell below 50% 2112 | -7/Factory | Core integrity fell below 20% 2118 | -7/Factory | Destroyed by S-27 Virus with Autogun Last Messages --------------- Acquired 4 matter. K-01 Serf collects debris. Acquired 5 matter. Deuterium Engine destroyed. Minigun destroyed. S-27 Virus knocked back. Acquired 3 matter. Gauss Cannon destroyed. Imp. Titanium Leg destroyed. Gauss Cannon destroyed. Lgt. Nuclear Core destroyed. S-27 Virus destroyed. Imp. Titanium Leg destroyed. Imp. Heat Sink destroyed. S-27 Virus destroyed. Mic. Nuclear Core destroyed. Nuclear Core destroyed. Acquired 9 matter. Targeting Computer destroyed. Weapon Cycler destroyed. Map ----- +----------------------------------------------------+ | ?????????????????????????????????????????????????? | | ?????????????????????????????????????????????????? | | ?????????????????????????????????????????????????? | | ?????????????????????????????????????????????????? | | ?????????????????????????????????????????????????? | | ??????????????????????????????????????????????? | | #?????????????????????????????????????????????? | | #?????????????????????????????????????????????? | | #???????????????????????? ??????????????????? | | #???????????????????????? #?????????????????? | | #???????????????????????# #?????????????????? | | #?????????????######????# #?????????????????? | | #?????????????# #????# #?????????????????? | | #?????????????# #????# #?????????????????? | | +?????????????# #????# #?????????????????? | | #?????????????# ""#????# #????????? ??????? | | #?????????????# ""#????# #???????? ??????? | | #?????????????# T"#????# #?????? #?????? | | #?????????????# ""#????# #????? ?????? | | #?????????????#= ""#????# #???? ?????? | | #??????#+#?#+## #????# #??? ????? | | #??????# #?# #####/###### ### "#????? | | #??????# ### ^ r a #?????? | | ######## u %= #?????? | | """s" s = #?????? | | ########### """s@s""" ???? | | ##????????###### """"s"""" ##+#####??????? | | # ??????# %[= ^ #?????????????? | | # """ ""??"" """" #?????????????? | | + ! """??????" """" #?????????????? | | # """?????#"F ^"""" #?????????????? | | #?! ?????#"" +?????????????? | | ########?????### """" """" #?????????????? | | ???? ""?" """" #?????????????? | | #???? ""?" """" ????????????? | | #???? ?? ??? ????????????? | | #???# "?? "??? ????????????? | | ????# "??? ???? ????????????? | | #######+####+#???? ???? ???? ??????????????? | | ?????????????????? ???? ???? ????????????????? | | #????????????????????????^???????????????????????? | | ?????????????????????????????????????????????????? | | ?????????????????????????????????????????????????? | | ?????????????????????????????????????????????????? | | ?????????????????????????????????????????????????? | | ?????????????????????????????????????????????????? | | ?????????????????????????????????????????????????? | | ?????????????????????????????????????????????????? | | ?????????????????????????????????????????????????? | | ?????????????????????????????????????????????????? | +----------------------------------------------------+ Best States ------------- Heat Dissipation 48 Energy Generation 42 Energy Capacity 615 Matter Stores 330 Matter Capacity 400 Sight Range 18 Robot Scan Range 14 Terrain Scan Density 10 Armor Coverage 225 Weapon Cycling 15 Evasion (%) 57 Targeting Accuracy 5 Melee Accuracy 6 Recoil Reduction 3 Item Schematics ----------------- Hpw. Shotgun | -8/Materials | Scanalyzed Robot Schematics ------------------ None Fabricated ------------ Nothing Repaired ---------- Nothing Alien Tech Used ----------------- None Achievements -------------- Close Call Everything Is Under Control Made in Tau Ceti IV Oops Please Form A Line Power Corrupts Universal Adapter Challenges ------------ None Game ------ Seed ArcResetField Manual? 0 Play Time 00:42:07 Cumulative 1.1 hours Start 2025.09.08 @ 01:07:20 End 2025.09.08 @ 01:48:49 Sessions 1 Manual Loads 0 Difficulty Rogue Special Mode None Game No. 2 Rogue 2 Adventurer 0 Explorer 0 Win Type - Total 0 Types 0/0/0/0/0/0/0/0/0/0 Lore% 0 Gallery% 4 Achievement% 5 Wizard Run 0 Options --------- Layout 1 ASCII 0 Keyboard 0 Movement Mouse Keybinds 0 Fullscreen 1 Font 24/Smallcaps Map View 50x35 Zoom Use 0% Tactical HUD 0 Map Filters NONE Filters NONE Steam 1 RUN: 4d275d32-a1c4-42c3-bc3b-9844910cc81d